fUSD/lending_fUSD_20250629
["ID","MTS","AMOUNT","RATE_DAILY","PERIOD"]
[368574148,1751212610449,-151.0,0.00022191,7]
[368574149,1751212610475,-174.667465,0.00022191,7]
[368574150,1751212610497,-433.36114574,0.00022191,2]
[368574151,1751212610520,-490.0,0.00022191,2]
[368574152,1751212610546,-490.0,0.00022191,2]
[368574153,1751212610570,-151.0,0.00022191,7]
[368574154,1751212610595,-151.0,0.00022191,7]
[368574155,1751212610618,-151.0,0.00022191,7]
[368574156,1751212610641,-151.0,0.00022191,7]
[368574157,1751212610664,-154.525558,0.00022191,7]
[368574158,1751212610687,-490.0,0.00022191,2]
[368574159,1751212610710,-151.0,0.00022191,7]
[368574160,1751212610733,-151.0,0.00022191,7]
[368574161,1751212610756,-153.381172,0.00022191,7]
[368574162,1751212610778,-490.0,0.00022191,2]
[368574163,1751212610801,-490.0,0.00022191,2]
[368574164,1751212610823,-670.78,0.00022191,2]
[368574165,1751212610846,-490.0,0.00022191,2]
[368574166,1751212610869,-151.958838,0.00022191,7]
[368574167,1751212610892,-490.0,0.00022191,2]
[368574168,1751212610916,-151.0,0.00022191,7]
[368574169,1751212610939,-151.0,0.00022191,7]
[368574170,1751212611217,-151.0,0.00022191,7]
[368574171,1751212611242,-490.0,0.00022191,2]
[368574172,1751212611265,-151.0,0.00022191,7]
[368574173,1751212611289,-154.505987,0.00022191,7]
[368574174,1751212611312,-154.853255,0.00022191,7]
[368574175,1751212611335,-153.487056,0.00022191,7]
[368574176,1751212611359,-490.0,0.00022191,2]
[368574177,1751212611385,-490.0,0.00022191,2]
[368574178,1751212611408,-151.0,0.00022191,7]
[368574179,1751212611431,-153.254452,0.00022191,7]
[368574180,1751212611454,-490.0,0.00022191,2]
[368574181,1751212611480,-151.0,0.00022191,7]
[368574182,1751212611503,-151.0,0.00022191,7]
[368574183,1751212611527,-151.0,0.00022191,7]
[368574184,1751212611551,-490.0,0.00022191,2]
[368574185,1751212611574,-490.0,0.00022191,2]
[368574186,1751212611598,-151.0,0.00022191,7]
[368574187,1751212611621,-153.161431,0.00022191,7]
[368574188,1751212611644,-490.0,0.00022191,2]
[368574189,1751212611668,-490.0,0.00022191,2]
[368574190,1751212611693,-151.0,0.00022191,7]
[368574191,1751212611717,-151.0,0.00022191,7]
[368574192,1751212611741,-151.0,0.00022191,7]
[368574193,1751212611766,-151.0,0.00022191,7]
[368574194,1751212611789,-490.0,0.00022191,2]
[368574195,1751212611813,-581.05,0.00022191,2]
[368574196,1751212611837,-151.0,0.00022191,7]
[368574197,1751212611861,-151.0,0.00022191,7]
[368574198,1751212611884,-151.0,0.00022191,7]
[368574199,1751212611907,-151.0,0.00022191,7]
[368574200,1751212611929,-530.0,0.00022191,2]
[368574201,1751212611953,-151.0,0.00022191,7]
[368574202,1751212611976,-151.0,0.00022191,7]
[368574203,1751212611998,-151.0,0.00022191,7]
[368574204,1751212612021,-151.150135,0.00022191,7]
[368574205,1751212612042,-519.99080662,0.00022191,2]
[368574206,1751212612064,-490.0,0.00022191,2]
[368574207,1751212612087,-490.0,0.00022191,2]
[368574208,1751212612110,-354.52061501,0.00022191,2]
[368574209,1751212612132,-490.0,0.00022191,2]
[368574210,1751212612154,-490.0,0.00022191,2]
[368574211,1751212612178,-1149.12,0.00022191,2]
[368574212,1751212612202,-608.84,0.00022191,2]
[368574213,1751212612225,-490.0,0.00022191,2]
[368574214,1751212612247,-490.0,0.00022191,2]
[368574215,1751212612269,-467.61133157,0.00022191,2]
[368574216,1751212612292,-490.0,0.00022191,2]
[368574217,1751212612316,-490.0,0.00022191,2]
[368574218,1751212612339,-490.0,0.00022191,2]
[368574219,1751212612363,-490.0,0.00022191,2]
[368574220,1751212612386,-828.57,0.00022191,2]
[368574221,1751212612408,-490.0,0.00022191,2]
[368574222,1751212612430,-504.58763187,0.00022191,2]
[368574223,1751212612454,-151.0,0.00022191,7]
[368574224,1751212612482,-151.0,0.00022191,7]
[368574225,1751212612506,-151.0,0.00022191,7]
[368574226,1751212612532,-216.94265486,0.00022191,2]
[368574227,1751212612558,-151.0,0.00022191,7]
[368574228,1751212612582,-490.0,0.00022191,2]
[368574229,1751212612606,-490.0,0.00022191,2]
[368574230,1751212612631,-151.0,0.00022191,7]
[368574231,1751212612656,-151.0,0.00022191,7]
[368574232,1751212612680,-194.804585,0.00022191,7]
[368574233,1751212612702,-490.0,0.00022191,2]
[368574234,1751212612725,-490.0,0.00022191,2]
[368574235,1751212612747,-490.0,0.00022191,2]
[368574236,1751212612770,-490.0,0.00022191,2]
[368574237,1751212612795,-490.0,0.00022191,2]
[368574238,1751212612818,-493.72,0.00022191,2]
[368574239,1751212612840,-490.0,0.00022191,2]
[368574240,1751212612864,-490.0,0.00022191,2]
[368574241,1751212612887,-490.0,0.00022191,2]
[368574242,1751212612911,-490.0,0.00022191,2]
[368574243,1751212612947,-490.0,0.00022191,2]
[368574244,1751212613178,-490.0,0.00022191,2]
[368574245,1751212613204,-548.0,0.00022191,2]
[368574246,1751212613227,-425.62052598,0.00022191,2]
[368574247,1751212613251,-490.0,0.00022191,2]
[368574248,1751212613273,-494.73531321,0.00022191,2]
[368574249,1751212613296,-151.0,0.00022191,7]
[368574250,1751212613320,-151.0,0.00022191,7]
[368574251,1751212613343,-151.0,0.00022191,7]
[368574252,1751212613369,-490.0,0.00022191,2]
[368574253,1751212613392,-490.0,0.00022191,2]
[368574254,1751212613416,-529.85,0.00022191,2]
[368574255,1751212613441,-490.0,0.00022191,2]
[368574256,1751212613468,-901.54,0.00022191,2]
[368574257,1751212613494,-1123.83,0.00022191,2]
[368574258,1751212613519,-490.0,0.00022191,2]
[368574259,1751212613542,-490.0,0.00022191,2]
[368574260,1751212613570,-508.96,0.00022191,2]
[368574261,1751212613595,-490.0,0.00022191,2]
[368574262,1751212613619,-525.04,0.00022191,2]
[368574263,1751212613643,-490.0,0.00022191,2]
[368574264,1751212613667,-591.16,0.00022191,2]
[368574265,1751212613695,-490.0,0.00022191,2]
[368574266,1751212613719,-490.0,0.00022191,2]
[368574267,1751212613743,-1497.05,0.00022191,2]
[368574268,1751212613767,-490.0,0.00022191,2]
[368574269,1751212613791,-1160.71,0.00022191,2]
[368574270,1751212613814,-515.05,0.00022191,2]
[368574271,1751212613839,-214.084678,0.00022191,7]
[368574272,1751212613864,-214.084678,0.00022191,7]
[368574273,1751212613889,-214.084678,0.00022191,7]
[368574274,1751212613914,-490.0,0.00022191,2]
[368574275,1751212613938,-435.6887779,0.00022191,2]
[368574276,1751212613963,-490.0,0.00022191,2]
[368574277,1751212613990,-1038.67,0.00022191,2]
[368574278,1751212614014,-214.084678,0.00022191,7]
[368574279,1751212614039,-214.084678,0.00022191,7]
[368574280,1751212614063,-214.084678,0.00022191,7]
[368574281,1751212614088,-490.0,0.00022191,2]
[368574282,1751212614112,-490.0,0.00022191,2]
[368574283,1751212614137,-843.14,0.00022191,2]
[368574284,1751212614162,-1187.18,0.00022191,2]
[368574285,1751212614186,-151.0,0.00022191,7]
[368574286,1751212614211,-151.0,0.00022191,7]
[368574287,1751212614235,-151.0,0.00022191,7]
[368574288,1751212614265,-151.0,0.00022191,7]
[368574289,1751212614290,-490.0,0.00022191,2]
[368574290,1751212614314,-152.511225,0.00022191,7]
[368574291,1751212614338,-1200.87,0.00022191,2]
[368574292,1751212614363,-490.0,0.00022191,2]
[368574293,1751212614387,-151.0,0.00022191,7]
[368574294,1751212614412,-151.0,0.00022191,7]
[368574295,1751212614435,-151.0,0.00022191,7]
[368574296,1751212614460,-490.0,0.00022191,2]
[368574297,1751212614487,-151.0,0.00022191,7]
[368574298,1751212614512,-151.0,0.00022191,7]
[368574299,1751212614536,-490.0,0.00022191,2]
[368574300,1751212614564,-490.0,0.00022191,2]
[368574301,1751212614588,-490.0,0.00022191,2]
[368574302,1751212614613,-490.0,0.00022191,2]
[368574303,1751212614639,-490.0,0.00022191,2]
[368574304,1751212614665,-490.0,0.00022191,2]
[368574305,1751212614689,-500.0,0.00022191,2]
[368574306,1751212614713,-490.0,0.00022191,2]
[368574307,1751212614737,-490.0,0.00022191,2]
[368574308,1751212614762,-490.0,0.00022191,2]
[368574309,1751212614786,-922.44,0.00022191,2]
[368574310,1751212614810,-490.0,0.00022191,2]
[368574311,1751212614838,-1102.76,0.00022191,2]
[368574312,1751212614863,-490.0,0.00022191,2]
[368574313,1751212614889,-490.0,0.00022191,2]
[368574314,1751212614915,-490.0,0.00022191,2]
[368574315,1751212614941,-490.0,0.00022191,2]
[368574316,1751212614966,-490.0,0.00022191,2]
[368574317,1751212614992,-490.0,0.00022191,2]
[368574318,1751212615020,-490.0,0.00022191,2]
[368574319,1751212615047,-671.13,0.00022191,2]
[368574320,1751212615072,-490.0,0.00022191,2]
[368574321,1751212615099,-490.0,0.00022191,2]
[368574322,1751212615124,-490.0,0.00022191,2]
[368574323,1751212615150,-927.13,0.00022191,2]
[368574324,1751212615176,-490.0,0.00022191,2]
[368574325,1751212615202,-490.0,0.00022191,2]
[368574326,1751212615228,-490.0,0.00022191,2]
[368574327,1751212615254,-563.96,0.00022191,2]
[368574328,1751212615279,-490.0,0.00022191,2]
[368574329,1751212615316,-490.0,0.00022191,2]
[368574330,1751212615343,-831.81,0.00022191,2]
[368574331,1751212615369,-548.6,0.00022191,2]
[368574332,1751212615396,-1073.69,0.00022191,2]
[368574333,1751212615421,-490.0,0.00022191,2]
[368574334,1751212615447,-490.0,0.00022191,2]
[368574335,1751212615475,-490.0,0.00022191,2]
[368574336,1751212615502,-630.82,0.00022191,2]
[368574337,1751212615528,-490.0,0.00022191,2]
[368574338,1751212615556,-490.0,0.00022191,2]
[368574339,1751212615583,-490.0,0.00022191,2]
[368574340,1751212615608,-490.0,0.00022191,2]
[368574341,1751212615633,-503.26176532,0.00022191,2]
[368574342,1751212615659,-490.0,0.00022191,2]
[368574343,1751212615685,-151.0,0.00022191,7]
[368574344,1751212615710,-151.0,0.00022191,7]
[368574345,1751212615734,-490.0,0.00022191,2]
[368574346,1751212615759,-151.0,0.00022191,7]
[368574347,1751212615784,-151.0,0.00022191,7]
[368574348,1751212615810,-151.0,0.00022191,7]
[368574349,1751212615838,-490.0,0.00022191,2]
[368574350,1751212615866,-776.17,0.00022191,2]
[368574351,1751212616280,-659.56,0.00022191,2]
[368574352,1751212616305,-205.57609,0.00022191,7]
[368574353,1751212616330,-490.0,0.00022191,2]
[368574354,1751212616355,-490.0,0.00022191,2]
[368574355,1751212616380,-490.0,0.00022191,2]
[368574356,1751212616404,-490.0,0.00022191,2]
[368574357,1751212616428,-544.33,0.00022191,2]
[368574358,1751212616452,-490.0,0.00022191,2]
[368574359,1751212616479,-490.0,0.00022191,2]
[368574360,1751212616505,-490.0,0.00022191,2]
[368574361,1751212616530,-151.0,0.00022191,7]
[368574362,1751212616555,-490.0,0.00022191,2]
[368574363,1751212616579,-151.0,0.00022191,7]
[368574364,1751212616603,-151.0,0.00022191,7]
[368574365,1751212616627,-151.0,0.00022191,7]
[368574366,1751212616651,-1014.08,0.00022191,2]
[368574367,1751212616674,-490.0,0.00022191,2]
[368574368,1751212616699,-632.6,0.00022191,2]
[368574369,1751212616721,-490.0,0.00022191,2]
[368574370,1751212616745,-823.15,0.00022191,2]
[368574371,1751212616769,-1563.67,0.00022191,2]
[368574372,1751212616792,-490.0,0.00022191,2]
[368574373,1751212616816,-151.0,0.00022191,7]
[368574374,1751212616841,-151.0,0.00022191,7]
[368574375,1751212616866,-151.0,0.00022191,7]
[368574376,1751212616891,-151.0,0.00022191,7]
[368574377,1751212616915,-151.0,0.00022191,7]
[368574378,1751212616939,-410.39951486,0.00022191,2]
[368574379,1751212616964,-1447.42,0.00022191,2]
[368574380,1751212616989,-457.50318061,0.00022191,2]
[368574381,1751212617014,-151.0,0.00022191,7]
[368574382,1751212617038,-151.0,0.00022191,7]
[368574383,1751212617062,-151.0,0.00022191,7]
[368574384,1751212617086,-151.0,0.00022191,7]
[368574385,1751212617112,-178.675418,0.00022191,7]
[368574386,1751212617136,-578.04,0.00022191,2]
[368574387,1751212617161,-687.84,0.00022191,2]
[368574388,1751212617184,-490.0,0.00022191,2]
[368574389,1751212617208,-490.0,0.00022191,2]
[368574390,1751212617232,-490.0,0.00022191,2]
[368574391,1751212617256,-362.66027848,0.00022191,2]
[368574392,1751212617280,-490.0,0.00022191,2]
[368574393,1751212617304,-490.0,0.00022191,2]
[368574394,1751212617327,-490.0,0.00022191,2]
[368574395,1751212617351,-490.0,0.00022191,2]
[368574396,1751212617374,-490.0,0.00022191,2]
[368574397,1751212617397,-754.53,0.00022191,2]
[368574398,1751212617420,-1000.0,0.00022191,2]
[368574399,1751212617444,-589.84,0.00022191,2]
[368574400,1751212617467,-625.30627742,0.00022191,2]
[368574401,1751212617494,-797.47,0.00022191,2]
[368574402,1751212617519,-490.0,0.00022191,2]
[368574403,1751212617542,-490.0,0.00022191,2]
[368574404,1751212617568,-490.0,0.00022191,2]
[368574405,1751212617591,-151.0,0.00022191,7]
[368574406,1751212617614,-490.0,0.00022191,2]
[368574407,1751212617637,-152.307839,0.00022191,7]
[368574408,1751212617661,-490.0,0.00022191,2]
[368574409,1751212617685,-490.0,0.00022191,2]
[368574410,1751212617708,-490.0,0.00022191,2]
[368574411,1751212617731,-490.0,0.00022191,2]
[368574412,1751212617754,-490.0,0.00022191,2]
[368574413,1751212617777,-490.0,0.00022191,2]
[368574414,1751212617802,-490.0,0.00022191,2]
[368574415,1751212617826,-490.0,0.00022191,2]
[368574416,1751212617849,-401.01466289,0.00022191,2]
[368574417,1751212617873,-490.0,0.00022191,2]
[368574418,1751212617897,-490.0,0.00022191,2]
[368574419,1751212617922,-490.0,0.00022191,2]
[368574420,1751212617946,-978.59,0.00022191,2]
[368574421,1751212617970,-490.0,0.00022191,2]
[368574422,1751212617995,-490.0,0.00022191,2]
[368574423,1751212618019,-490.0,0.00022191,2]
[368574424,1751212618043,-490.0,0.00022191,2]
[368574425,1751212618068,-605.04,0.00022191,2]
[368574426,1751212618092,-536.13,0.00022191,2]
[368574427,1751212618117,-490.0,0.00022191,2]
[368574428,1751212618143,-490.0,0.00022191,2]
[368574429,1751212618167,-490.0,0.00022191,2]
[368574430,1751212618191,-490.0,0.00022191,2]
[368574431,1751212618216,-674.0,0.00022191,2]
[368574432,1751212618240,-755.71,0.00022191,2]
[368574433,1751212618264,-974.87,0.00022191,2]
[368574434,1751212618287,-490.0,0.00022191,2]
[368574435,1751212618310,-769.25,0.00022191,2]
[368574436,1751212618333,-490.0,0.00022191,2]
[368574437,1751212618358,-151.0,0.00022191,7]
[368574438,1751212618381,-151.0,0.00022191,7]
[368574439,1751212618405,-151.0,0.00022191,7]
[368574440,1751212618428,-679.28,0.00022191,2]
[368574441,1751212618451,-490.0,0.00022191,2]
[368574442,1751212618477,-490.0,0.00022191,2]
[368574443,1751212618500,-635.08,0.00022191,2]
[368574444,1751212618524,-490.0,0.00022191,2]
[368574445,1751212618549,-490.0,0.00022191,2]
[368574446,1751212618572,-578.54660694,0.00022191,2]
[368574447,1751212618596,-603.11,0.00022191,2]
[368574448,1751212618628,-490.0,0.00022191,2]
[368574449,1751212618663,-1042.54,0.00022191,2]
[368574450,1751212618686,-490.0,0.00022191,2]
[368574451,1751212618710,-490.0,0.00022191,2]
[368574452,1751212618733,-490.0,0.00022191,2]
[368574453,1751212618757,-1780.86,0.00022191,2]
[368574454,1751212618780,-787.64,0.00022191,2]
[368574455,1751212618804,-490.0,0.00022191,2]
[368574456,1751212618827,-155.739728,0.00022191,7]
[368574457,1751212618852,-490.0,0.00022191,2]
[368574458,1751212618875,-490.0,0.00022191,2]
[368574459,1751212618899,-490.0,0.00022191,2]
[368574460,1751212618923,-1229.73,0.00022191,2]
[368574461,1751212618946,-526.53294224,0.00022191,2]
[368574462,1751212618970,-490.0,0.00022191,2]
[368574463,1751212618993,-490.0,0.00022191,2]
[368574464,1751212619017,-490.0,0.00022191,2]
[368574465,1751212619042,-490.0,0.00022191,2]
[368574466,1751212619067,-604.93,0.00022191,2]
[368574467,1751212619093,-490.0,0.00022191,2]
[368574468,1751212619119,-1013.11,0.00022191,2]
[368574469,1751212619143,-852.04,0.00022191,2]
[368574470,1751212619168,-490.0,0.00022191,2]
[368574471,1751212619193,-490.0,0.00022191,2]
[368574472,1751212619218,-490.0,0.00022191,2]
[368574473,1751212619243,-490.0,0.00022191,2]
[368574474,1751212619267,-490.0,0.00022191,2]
[368574475,1751212619291,-627.82,0.00022191,2]
[368574476,1751212619315,-490.0,0.00022191,2]
[368574477,1751212619340,-492.40052017,0.00022191,2]
[368574478,1751212619364,-490.0,0.00022191,2]
[368574479,1751212619389,-611.71,0.00022191,2]
[368574480,1751212619413,-528.67,0.00022191,2]
[368574481,1751212619437,-2145.97,0.00022191,2]
[368574482,1751212619462,-151.0,0.00022191,7]
[368574483,1751212619488,-151.0,0.00022191,7]
[368574484,1751212619512,-1190.48,0.00022191,2]
[368574485,1751212619536,-151.0,0.00022191,7]
[368574486,1751212619563,-151.0,0.00022191,7]
[368574487,1751212619586,-505.51571617,0.00022191,2]
[368574488,1751212619608,-153.396784,0.00022191,7]
[368574489,1751212619632,-853.9,0.00022191,2]
[368574490,1751212619659,-151.0,0.00022191,7]
[368574491,1751212619683,-490.0,0.00022191,2]
[368574492,1751212619706,-490.0,0.00022191,2]
[368574493,1751212619729,-490.0,0.00022191,2]
[368574494,1751212619753,-560.58,0.00022191,2]
[368574495,1751212619777,-1086.65,0.00022191,2]
[368574496,1751212619799,-490.0,0.00022191,2]
[368574497,1751212619825,-490.0,0.00022191,2]
[368574498,1751212619850,-490.0,0.00022191,2]
[368574499,1751212619873,-490.0,0.00022191,2]
[368574500,1751212619897,-1002.76,0.00022191,2]
[368574501,1751212619920,-490.0,0.00022191,2]
[368574502,1751212619944,-1117.31,0.00022191,2]
[368574503,1751212619967,-490.0,0.00022191,2]
[368574504,1751212619990,-1926.49,0.00022191,2]
[368574505,1751212620014,-490.0,0.00022191,2]
[368574506,1751212620038,-490.0,0.00022191,2]
[368574507,1751212620063,-490.0,0.00022191,2]
[368574508,1751212620088,-490.0,0.00022191,2]
[368574509,1751212620115,-490.0,0.00022191,2]
[368574510,1751212620141,-490.0,0.00022191,2]
[368574511,1751212620166,-490.0,0.00022191,2]
[368574512,1751212620191,-946.63,0.00022191,2]
[368574513,1751212620217,-490.0,0.00022191,2]
[368574514,1751212620243,-490.0,0.00022191,2]
[368574515,1751212620269,-490.0,0.00022191,2]
[368574516,1751212620295,-490.0,0.00022191,2]
[368574517,1751212620321,-497.58,0.00022191,2]
[368574518,1751212620347,-490.0,0.00022191,2]
[368574519,1751212620374,-490.0,0.00022191,2]
[368574520,1751212620398,-490.0,0.00022191,2]
[368574521,1751212620424,-826.31,0.00022191,2]
[368574522,1751212620450,-734.98,0.00022191,2]
[368574523,1751212620478,-1220.42,0.00022191,2]
[368574524,1751212620503,-504.46462686,0.00022191,2]
[368574525,1751212620532,-1635.72,0.00022191,2]
[368574526,1751212620561,-490.0,0.00022191,2]
[368574527,1751212620586,-490.0,0.00022191,2]
[368574528,1751212620611,-582.93,0.00022191,2]
[368574529,1751212620636,-490.0,0.00022191,2]
[368574530,1751212620855,-496.39,0.00022191,2]
[368574531,1751212620922,-490.0,0.00022191,2]
[368574532,1751212620948,-1271.28,0.00022191,2]
[368574533,1751212620973,-490.0,0.00022191,2]
[368574534,1751212620997,-1177.79,0.00022191,2]
[368574535,1751212621022,-847.9,0.00022191,2]
[368574536,1751212621046,-480.0,0.00022191,2]
[368574537,1751212621070,-662.6,0.00022191,2]
[368574538,1751212621094,-515.55,0.00022191,2]
[368574539,1751212621119,-490.33,0.00022191,2]
[368574540,1751212621143,-154.0724765,0.00022191,2]
[368574541,1751212621168,-490.0,0.00022191,2]
[368574542,1751212621192,-490.0,0.00022191,2]
[368574543,1751212621216,-648.72,0.00022191,2]
[368574544,1751212621239,-1403.15,0.00022191,2]
[368574545,1751212621263,-490.0,0.00022191,2]
[368574546,1751212621287,-490.0,0.00022191,2]
[368574547,1751212621311,-1642.68,0.00022191,2]
[368574548,1751212621335,-761.44,0.00022191,2]
[368574549,1751212621360,-1043.76,0.00022191,2]
[368574550,1751212621383,-490.0,0.00022191,2]
[368574551,1751212621406,-490.0,0.00022191,2]
[368574552,1751212621429,-490.0,0.00022191,2]
[368574553,1751212621452,-490.0,0.00022191,2]
[368574554,1751212621480,-490.0,0.00022191,2]
[368574555,1751212621504,-490.0,0.00022191,2]
[368574556,1751212621528,-556.04,0.00022191,2]
[368574557,1751212621553,-490.0,0.00022191,2]
[368574558,1751212621577,-490.0,0.00022191,2]
[368574559,1751212621601,-490.0,0.00022191,2]
[368574560,1751212621625,-1139.5,0.00022191,2]
[368574561,1751212621648,-1180.99,0.00022191,2]
[368574562,1751212621671,-490.0,0.00022191,2]
[368574563,1751212621693,-490.0,0.00022191,2]
[368574564,1751212621715,-490.0,0.00022191,2]
[368574565,1751212621739,-490.0,0.00022191,2]
[368574566,1751212621762,-490.0,0.00022191,2]
[368574567,1751212621785,-490.0,0.00022191,2]
[368574568,1751212621810,-1021.58,0.00022191,2]
[368574569,1751212621835,-554.59,0.00022191,2]
[368574570,1751212621859,-495.17142531,0.00022191,2]
[368574571,1751212621883,-516.72,0.00022191,2]
[368574572,1751212621906,-490.0,0.00022191,2]
[368574573,1751212621931,-490.0,0.00022191,2]
[368574574,1751212621954,-490.0,0.00022191,2]
[368574575,1751212621978,-652.11,0.00022191,2]
[368574576,1751212622002,-490.0,0.00022191,2]
[368574577,1751212622028,-1230.51,0.00022191,2]
[368574578,1751212622052,-490.0,0.00022191,2]
[368574579,1751212622076,-490.0,0.00022191,2]
[368574580,1751212622101,-490.0,0.00022191,2]
[368574581,1751212622125,-490.0,0.00022191,2]
[368574582,1751212622148,-490.0,0.00022191,2]
[368574583,1751212622173,-490.0,0.00022191,2]
[368574584,1751212622197,-490.0,0.00022191,2]
[368574585,1751212622221,-2813.97,0.00022191,2]
[368574586,1751212622244,-490.0,0.00022191,2]
[368574587,1751212622269,-490.0,0.00022191,2]
[368574588,1751212622293,-490.0,0.00022191,2]
[368574589,1751212622317,-2799.92,0.00022191,2]
[368574590,1751212622341,-660.83,0.00022191,2]
[368574591,1751212622364,-490.0,0.00022191,2]
[368574592,1751212622388,-490.0,0.00022191,2]
[368574593,1751212622412,-490.0,0.00022191,2]
[368574594,1751212622436,-490.0,0.00022191,2]
[368574595,1751212622461,-648.4,0.00022191,2]
[368574596,1751212622489,-490.0,0.00022191,2]
[368574597,1751212622547,-490.0,0.00022191,2]
[368574598,1751212622600,-490.0,0.00022191,2]
[368574599,1751212622656,-1591.12,0.00022191,2]
[368574600,1751212622708,-490.0,0.00022191,2]
[368574601,1751212622760,-490.0,0.00022191,2]
[368574602,1751212622813,-490.0,0.00022191,2]
[368574603,1751212622864,-490.0,0.00022191,2]
[368574604,1751212622920,-968.28,0.00022191,2]
[368574605,1751212622976,-637.95672727,0.00022191,2]
[368574606,1751212623034,-490.0,0.00022191,2]
[368574607,1751212623098,-503.26,0.00022191,2]
[368574608,1751212623160,-490.0,0.00022191,2]
[368574609,1751212623223,-548.06,0.00022191,2]
[368574610,1751212623283,-490.0,0.00022191,2]
[368574611,1751212623346,-490.0,0.00022191,2]
[368574612,1751212623408,-490.0,0.00022191,2]
[368574613,1751212623471,-490.0,0.00022191,2]
[368574614,1751212623538,-1623.4,0.00022191,2]
[368574615,1751212623607,-990.03,0.00022191,2]
[368574616,1751212623674,-490.0,0.00022191,2]
[368574617,1751212623739,-506.64,0.00022191,2]
[368574618,1751212623803,-1031.38,0.00022191,2]
[368574619,1751212623870,-496.02713546,0.00022191,2]
[368574620,1751212623935,-490.0,0.00022191,2]
[368574621,1751212624000,-1111.21,0.00022191,2]
[368574622,1751212624067,-490.0,0.00022191,2]
[368574623,1751212624130,-490.0,0.00022191,2]
[368574624,1751212624195,-1797.41,0.00022191,2]
[368574625,1751212624255,-490.0,0.00022191,2]
[368574626,1751212624313,-490.0,0.00022191,2]
[368574627,1751212624373,-490.0,0.00022191,2]
[368574628,1751212624429,-415.49815509,0.00022191,2]
[368574629,1751212624487,-667.7,0.00022191,2]
[368574630,1751212624543,-490.0,0.00022191,2]
[368574631,1751212624613,-606.06,0.00022191,2]
[368574632,1751212624673,-611.75,0.00022191,2]
[368574633,1751212624733,-2415.21,0.00022191,2]
[368574634,1751212624794,-490.0,0.00022191,2]
[368574635,1751212624852,-931.11,0.00022191,2]
[368574636,1751212624916,-490.0,0.00022191,2]
[368574637,1751212624979,-490.0,0.00022191,2]
[368574638,1751212625040,-490.0,0.00022191,2]
[368574639,1751212625104,-1685.4,0.00022191,2]
[368574640,1751212625166,-2221.29,0.00022191,2]
[368574641,1751212625229,-577.9,0.00022191,2]
[368574642,1751212625290,-1671.15,0.00022191,2]
[368574643,1751212625350,-490.0,0.00022191,2]
[368574644,1751212625409,-490.0,0.00022191,2]
[368574645,1751212625469,-151.0,0.00022191,7]
[368574646,1751212625533,-2557.14,0.00022191,2]
[368574647,1751212625594,-490.0,0.00022191,2]